fUSD/lending_fUSD_20260408
["ID","MTS","AMOUNT","RATE_DAILY","PERIOD"]
[420039365,1775628656136,-150.0,0.00027151,4]
[420039366,1775628656147,-150.0,0.00027164,4]
[420039367,1775628656157,-150.0,0.00027169,4]
[420039368,1775628656166,-1000.0,0.0002718,90]
[420039369,1775628656176,-1000.0,0.0002718,90]
[420039370,1775628656187,-1000.0,0.0002718,90]
[420039371,1775628656197,-1000.0,0.0002718,90]
[420039372,1775628656207,-1000.0,0.0002718,90]
[420039373,1775628656216,-1000.0,0.0002718,90]
[420039374,1775628656226,-1000.0,0.0002718,90]
[420039375,1775628656236,-1000.0,0.0002718,90]
[420039376,1775628656246,-1000.0,0.0002718,90]
[420039377,1775628656256,-1000.0,0.0002718,90]
[420039378,1775628656266,-1000.0,0.0002718,90]
[420039379,1775628656277,-1000.0,0.0002718,90]
[420039380,1775628656287,-1000.0,0.0002718,90]
[420039381,1775628656298,-1000.0,0.0002718,90]
[420039382,1775628656308,-958.665,0.0002718,90]
[420039383,1775628656318,-1000.0,0.00027185,120]
[420039384,1775628656328,-150.0,0.00027187,4]
[420039385,1775628656338,-150.0,0.000272,4]
[420039386,1775628656348,-640.8663,0.000272,2]
[420039387,1775628656358,-825.0,0.00027221,60]
[420039388,1775628656368,-2000.0,0.0002723,2]
[420039389,1775628656378,-2000.0,0.0002723,2]
[420039390,1775628656388,-2000.0,0.0002723,2]
[420039391,1775628656399,-477.15533545,0.00027252,2]
[420039392,1775628656409,-200.0,0.00027279,2]
[420039393,1775628656419,-150.0,0.00027288,4]
[420039394,1775628656428,-150.0,0.00027288,4]
[420039395,1775628656439,-150.0,0.00027288,4]
[420039396,1775628656448,-150.0,0.00027288,4]
[420039397,1775628656458,-150.0,0.00027288,4]
[420039398,1775628656468,-152.89757625,0.00027288,4]
[420039399,1775628656480,-254.64348,0.00027288,4]
[420039400,1775628656490,-269.022301,0.00027288,4]
[420039401,1775628656500,-500.303798,0.0002729,2]
[420039402,1775628656510,-500.303798,0.0002729,2]
[420039403,1775628656519,-591.919533,0.0002729,2]
[420039404,1775628656529,-151.0,0.0002729,2]
[420039405,1775628656539,-500.303798,0.0002729,2]
[420039406,1775628656548,-591.919533,0.0002729,2]
[420039407,1775628656558,-500.303798,0.0002729,2]
[420039408,1775628656568,-591.919533,0.0002729,2]
[420039409,1775628656578,-591.919533,0.0002729,2]
[420039410,1775628656588,-486.879159,0.0002729,2]
[420039411,1775628656597,-486.879159,0.0002729,2]
[420039412,1775628656607,-486.879159,0.0002729,2]
[420039413,1775628656617,-486.879159,0.0002729,2]
[420039414,1775628656626,-158.486598,0.0002729,2]
[420039415,1775628656637,-158.486598,0.0002729,2]
[420039416,1775628656647,-158.486598,0.0002729,2]
[420039417,1775628656656,-158.486598,0.0002729,2]
[420039418,1775628656666,-1997.607165,0.0002729,2]
[420039419,1775628656675,-1997.607165,0.0002729,2]
[420039420,1775628656684,-1997.607165,0.0002729,2]
[420039421,1775628656694,-157.639504,0.0002729,2]
[420039422,1775628657085,-1997.607165,0.0002729,2]
[420039423,1775628657112,-157.639504,0.0002729,2]
[420039424,1775628657122,-166.285857,0.0002729,2]
[420039425,1775628657132,-157.639504,0.0002729,2]
[420039426,1775628657142,-174.887897,0.0002729,2]
[420039427,1775628657151,-166.285857,0.0002729,2]
[420039428,1775628657161,-151.0,0.0002729,2]
[420039429,1775628657170,-157.639504,0.0002729,2]
[420039430,1775628657179,-576.67248,0.0002729,2]
[420039431,1775628657189,-174.887897,0.0002729,2]
[420039432,1775628657199,-166.285857,0.0002729,2]
[420039433,1775628657209,-151.0,0.0002729,2]
[420039434,1775628657219,-174.887897,0.0002729,2]
[420039435,1775628657229,-576.67248,0.0002729,2]
[420039436,1775628657239,-166.285857,0.0002729,2]
[420039437,1775628657249,-576.67248,0.0002729,2]
[420039438,1775628657260,-382.373813,0.0002729,2]
[420039439,1775628657269,-174.887897,0.0002729,2]
[420039440,1775628657279,-576.67248,0.0002729,2]
[420039441,1775628657290,-382.373813,0.0002729,2]
[420039442,1775628657300,-200.428712,0.0002729,2]
[420039443,1775628657311,-331.903835,0.0002729,2]
[420039444,1775628657321,-382.373813,0.0002729,2]
[420039445,1775628657331,-516.55211,0.0002729,2]
[420039446,1775628657341,-200.428712,0.0002729,2]
[420039447,1775628657350,-151.0,0.0002729,2]
[420039448,1775628657360,-216.401494,0.0002729,2]
[420039449,1775628657370,-151.0,0.0002729,2]
[420039450,1775628657381,-331.903835,0.0002729,2]
[420039451,1775628657391,-382.373813,0.0002729,2]
[420039452,1775628657401,-516.55211,0.0002729,2]
[420039453,1775628657411,-200.428712,0.0002729,2]
[420039454,1775628657420,-216.401494,0.0002729,2]
[420039455,1775628657430,-666.550951,0.0002729,2]
[420039456,1775628657440,-151.0,0.0002729,2]
[420039457,1775628657450,-331.903835,0.0002729,2]
[420039458,1775628657460,-516.55211,0.0002729,2]
[420039459,1775628657469,-200.428712,0.0002729,2]
[420039460,1775628657479,-216.401494,0.0002729,2]
[420039461,1775628657488,-666.550951,0.0002729,2]
[420039462,1775628657498,-151.0,0.0002729,2]
[420039463,1775628657508,-331.903835,0.0002729,2]
[420039464,1775628657518,-516.55211,0.0002729,2]
[420039465,1775628657527,-216.401494,0.0002729,2]
[420039466,1775628657537,-666.550951,0.0002729,2]
[420039467,1775628657547,-151.0,0.0002729,2]
[420039468,1775628657556,-666.550951,0.0002729,2]
[420039469,1775628657566,-1298.010302,0.0002729,2]
[420039470,1775628657576,-406.974794,0.0002729,2]
[420039471,1775628657586,-688.562471,0.0002729,2]
[420039472,1775628657596,-1298.010302,0.0002729,2]
[420039473,1775628657605,-151.0,0.0002729,2]
[420039474,1775628657614,-406.974794,0.0002729,2]
[420039475,1775628657624,-1298.010302,0.0002729,2]
[420039476,1775628657634,-406.974794,0.0002729,2]
[420039477,1775628657644,-151.0,0.0002729,2]
[420039478,1775628657653,-1298.010302,0.0002729,2]
[420039479,1775628657663,-406.974794,0.0002729,2]
[420039480,1775628657673,-688.562471,0.0002729,2]
[420039481,1775628657683,-151.0,0.0002729,2]
[420039482,1775628657693,-688.562471,0.0002729,2]
[420039483,1775628657703,-151.0,0.0002729,2]
[420039484,1775628657712,-151.0,0.0002729,2]
[420039485,1775628657722,-688.562471,0.0002729,2]
[420039486,1775628657732,-25.52586922,0.0002729,2]
[420039487,1775628659146,-415.0,0.00017239,2]
[420039488,1775628659156,-415.0,0.00020239,2]
[420039489,1775628659166,-415.0,0.00023239,2]
[420039490,1775628659175,-150.0,0.00024658,2]
[420039491,1775628659184,-150.0,0.0002589,2]
[420039492,1775628659194,-415.0,0.00026239,2]
[420039493,1775628659204,-1000.0,0.00026974,120]
[420039494,1775628659213,-1000.0,0.00026974,120]
[420039495,1775628659222,-1000.0,0.00026974,120]
[420039496,1775628659232,-1000.0,0.00026974,120]
[420039497,1775628659242,-1000.0,0.00026974,120]
[420039498,1775628659253,-1000.0,0.00026974,120]
[420039499,1775628659263,-236.05569878,0.0002729,2]
[420039500,1775628659272,-151.0,0.0002729,2]
[420039501,1775628659282,-151.0,0.0002729,2]
[420039502,1775628659292,-151.0,0.0002729,2]
[420039503,1775628659302,-170.588254,0.0002729,2]
[420039504,1775628659313,-306.332244,0.0002729,2]
[420039505,1775628659322,-470.727614,0.0002729,2]
[420039506,1775628659332,-151.0,0.0002729,2]
[420039507,1775628659342,-306.332244,0.0002729,2]
[420039508,1775628659351,-151.0,0.0002729,2]
[420039509,1775628659360,-470.727614,0.0002729,2]
[420039510,1775628659369,-306.332244,0.0002729,2]
[420039511,1775628659379,-470.727614,0.0002729,2]
[420039512,1775628659388,-189.530249,0.0002729,2]
[420039513,1775628659397,-306.332244,0.0002729,2]
[420039514,1775628659406,-470.727614,0.0002729,2]
[420039515,1775628659415,-511.805651,0.0002729,2]
[420039516,1775628659425,-511.805651,0.0002729,2]
[420039517,1775628659434,-511.805651,0.0002729,2]
[420039518,1775628659443,-159.072668,0.0002729,2]
[420039519,1775628659453,-183.246062,0.0002729,2]
[420039520,1775628659462,-511.805651,0.0002729,2]
[420039521,1775628659472,-159.072668,0.0002729,2]
[420039522,1775628659482,-183.246062,0.0002729,2]
[420039523,1775628659492,-159.072668,0.0002729,2]
[420039524,1775628659501,-183.246062,0.0002729,2]
[420039525,1775628659511,-151.0,0.0002729,2]
[420039526,1775628659520,-159.072668,0.0002729,2]
[420039527,1775628659530,-183.246062,0.0002729,2]
[420039528,1775628659540,-151.0,0.0002729,2]
[420039529,1775628659550,-151.0,0.0002729,2]
[420039530,1775628659561,-244.821422,0.0002729,2]
[420039531,1775628659571,-151.0,0.0002729,2]
[420039532,1775628659581,-244.821422,0.0002729,2]
[420039533,1775628659591,-157.854968,0.0002729,2]
[420039534,1775628659601,-244.821422,0.0002729,2]
[420039535,1775628659610,-244.821422,0.0002729,2]
[420039536,1775628659625,-1488.45197913,0.0002729,2]
[420039537,1775628659644,-326.45001167,0.0002729,2]
[420039538,1775628659662,-2869.88,0.0002729,2]
[420039540,1775628700299,10000.01,0.00010408,2]
[420039541,1775628700323,10000.01,0.00010408,2]
[420039542,1775628700347,10000.01,0.00010408,2]
[420039543,1775628700373,10000.01,0.00010408,2]
[420039544,1775628700398,10000.01,0.00010408,2]
[420039545,1775628700424,10000.01,0.00010408,2]
[420039546,1775628700450,10000.01,0.00010408,2]
[420039547,1775628700475,10000.01,0.00010408,2]
[420039548,1775628700500,10000.01,0.00010408,2]
[420039549,1775628700525,10000.01,0.00010408,2]
[420039550,1775628718230,-10000.01,0.00010408,2]
[420039551,1775628718337,-10000.01,0.00010408,2]
[420039552,1775628718696,-10000.01,0.00010408,2]
[420039553,1775628718813,-10000.01,0.00010408,2]
[420039554,1775628718947,-10000.01,0.00010408,2]
[420039555,1775628720664,-10000.01,0.00010408,2]
[420039556,1775628720763,-10000.01,0.00010408,2]
[420039557,1775628720854,-10000.01,0.00010408,2]
[420039558,1775628720973,-10000.01,0.00010408,2]
[420039559,1775628728796,25025.238976,7.945e-05,2]
[420039560,1775628729755,-300.0,0.00010407,2]
[420039561,1775628729787,-150.0,0.00010407,2]
[420039562,1775628729819,-300.0,0.00010407,2]
[420039563,1775628729895,-8500.01,0.00010408,2]
[420039564,1775628729913,-10000.01,0.00010408,2]
[420039565,1775628729944,-10000.01,0.00010408,2]
[420039566,1775628730265,-10000.01,0.00010408,2]
[420039567,1775628730296,-10000.01,0.00010408,2]
[420039568,1775628735917,-10000.01,0.00010408,2]
[420039569,1775628736197,-10000.01,0.00010408,2]
[420039570,1775628736835,-10000.01,0.00010408,2]
[420039573,1775628741948,-10000.01,0.00010408,2]
[420039574,1775628742073,-10000.01,0.00010408,2]
[420039575,1775628742162,-10000.01,0.00010408,2]
[420039576,1775628742279,-10000.01,0.00010408,2]
[420039577,1775628769293,-2070.7998187,0.00010308,2]
[420039579,1775628784550,10000.01,0.00010308,2]
[420039580,1775628784583,-2707.82715244,0.00010308,2]
[420039583,1775628809558,373.89093166,0.00010308,2]
[420039584,1775628817946,5622.39,0.00010049,2]
[420039585,1775628818602,276.57352178,9.556e-05,4]
[420039587,1775628851707,178.79031112,0.00010308,2]
[420039588,1775628863247,157.0,6.802e-05,2]
[420039589,1775628863301,152.0,6.802e-05,2]
[420039590,1775628863349,152.0,6.802e-05,2]
[420039591,1775628863606,152.0,6.802e-05,2]
[420039592,1775628863880,152.0,6.802e-05,2]
[420039593,1775628864167,152.0,6.802e-05,2]
[420039594,1775628864430,152.0,6.802e-05,2]
[420039595,1775628864696,152.0,6.802e-05,2]
[420039596,1775628864964,152.0,6.802e-05,2]
[420039597,1775628865228,152.0,6.802e-05,2]
[420039598,1775628865482,152.0,6.802e-05,2]
[420039599,1775628865752,152.0,6.802e-05,2]
[420039600,1775628866015,152.0,6.802e-05,2]
[420039601,1775628866296,152.0,6.802e-05,2]
[420039602,1775628866541,152.0,6.802e-05,2]
[420039603,1775628866801,152.0,6.802e-05,2]
[420039604,1775628867063,152.0,6.802e-05,2]
[420039605,1775628867336,152.0,6.802e-05,2]
[420039606,1775628867635,152.0,6.802e-05,2]
[420039607,1775628868743,168.0,6.802e-05,2]
[420039608,1775628868996,156.0,6.802e-05,2]
[420039609,1775628869248,156.0,6.802e-05,2]
[420039610,1775628869501,156.0,6.802e-05,2]
[420039611,1775628869763,19.36523544,6.802e-05,2]
[420039612,1775628869787,136.63476456,6.802e-05,2]
[420039613,1775628870017,156.0,6.802e-05,2]
[420039614,1775628870271,156.0,6.802e-05,2]
[420039615,1775628870525,156.0,6.802e-05,2]
[420039616,1775628870811,156.0,6.802e-05,2]
[420039617,1775628871073,156.0,6.802e-05,2]
[420039618,1775628871328,156.0,6.802e-05,2]
[420039619,1775628871580,156.0,6.802e-05,2]
[420039620,1775628871830,156.0,6.802e-05,2]
[420039621,1775628872084,156.0,6.802e-05,2]
[420039622,1775628872341,156.0,6.802e-05,2]
[420039623,1775628872772,156.0,6.802e-05,2]
[420039624,1775628872843,156.0,6.802e-05,2]
[420039625,1775628873094,156.0,6.802e-05,2]
[420039626,1775628874160,156.0,6.802e-05,2]
[420039627,1775628895417,2880.26690687,0.00010308,2]
[420039628,1775628897527,565.7016863,0.00010308,2]
[420039629,1775628901312,976.67,0.00010355,2]
[420039630,1775628904762,3256.73664227,0.00010308,2]
[420039631,1775628904785,8232.82946563,0.00010308,2]
[420039632,1775628908237,250.0,0.00010358,2]
[420039633,1775628908276,250.0,0.00010388,2]
[420039634,1775628927069,854.33941892,0.00010308,2]
[420039636,1775628966951,200.0,0.000105,30]
[420039637,1775628968089,412.84111545,7.945e-05,2]
[420039638,1775628968114,538.44327955,7.945e-05,2]
[420039639,1775628980884,178.79031113,0.00010308,2]
[420039640,1775628992295,3277.8,0.00010049,2]
[420039641,1775629024910,6004.97640932,0.00010308,2]
[420039642,1775629024937,1654.73432928,0.00010308,2]
[420039643,1775629027522,525.21837382,0.00010308,2]
[420039644,1775629028872,1920.17793792,0.00010308,2]
[420039647,1775629086389,200.0,0.000105,30]
[420039648,1775629104161,1678.99,0.00010049,2]
[420039649,1775629114754,2000.0,9.876e-05,2]
[420039650,1775629114813,178.79031112,0.00010308,2]
[420039651,1775629131151,2042.09904786,0.00010308,2]
[420039652,1775629131179,457.90095214,0.00010308,2]
[420039653,1775629153748,5106.47382572,0.00010308,2]
[420039654,1775629159108,1280.11862528,0.00010308,2]
[420039655,1775629162281,350.14558254,0.00010308,2]
[420039656,1775629173121,200.3541267,0.0001039,2]
[420039657,1775629199929,249.26062112,0.00010308,2]
[420039658,1775629206667,200.0,0.000105,30]
[420039659,1775629215304,10000.01,0.00010049,2]
[420039660,1775629215329,5652.04,0.00010049,2]
[420039661,1775629215602,4347.97,0.000103,2]
[420039662,1775629215627,5652.03,0.000103,2]
[420039663,1775629234106,1639.121861,0.00010345,2]
[420039664,1775629245281,178.79031112,0.00010308,2]
[420039665,1775629247382,200.0,0.000103,2]
[420039666,1775629249381,7982.09782788,0.00010049,2]
[420039667,1775629249405,7231.39217212,0.00010049,2]
[420039669,1775629304453,166.66,9.917e-05,2]
[420039670,1775629304657,166.66,0.00010245,2]
[420039672,1775629306696,150.0,0.00011233,120]
[420039674,1775629326886,200.0,0.000105,30]
[420039675,1775629341656,1924.47,0.00010049,2]
[420039678,1775629426337,6506.4,0.00010298,2]
[420039679,1775629555348,258.21283033,0.00010207,2]
[420039680,1775629561309,258.21283033,0.00010253,2]
[420039681,1775629782073,-258.21283033,0.00010299,2]
[420039682,1775629782106,-300.0,0.00010299,2]
[420039683,1775629782137,-299.0,0.00010299,2]
[420039684,1775629801132,1200.0,0.00010299,2]
[420039685,1775629801162,300.0,0.00010299,2]
[420039686,1775629801739,300.0,0.00010299,2]
[420039687,1775629802122,300.0,0.00010299,2]
[420039688,1775629810303,6185.58433934,0.00010299,2]
[420039689,1775629810329,10000.01,0.00010299,2]
[420039690,1775629810356,10000.01,0.00010299,2]
[420039691,1775629810384,10000.01,0.00010299,2]
[420039692,1775629810411,10000.01,0.00010299,2]
[420039715,1775629833441,-697.34512114,0.00010289,2]
[420039716,1775629833452,-500.0,0.00010298,2]
[420039717,1775629833462,-319.78756593,0.00010298,2]
[420039718,1775629833473,-180.21243407,0.00010298,2]
[420039719,1775629833482,-197.51949262,0.00010298,2]
[420039720,1775629833492,-521.51375713,0.00010298,2]
[420039721,1775629833502,-500.0,0.00010298,2]
[420039722,1775629833511,-606.41916066,0.00010298,2]
[420039723,1775629833521,-500.0,0.00010298,2]
[420039724,1775629833531,-500.0,0.00010298,2]
[420039725,1775629833540,-500.0,0.00010298,2]
[420039726,1775629833551,-500.0,0.00010298,2]
[420039727,1775629833561,-355.91172293,0.00010298,2]
[420039728,1775629833570,-500.0,0.00010298,2]
[420039729,1775629833580,-353125.39261135,0.00010299,2]
[420039730,1775629833592,-126456.75517783,0.00010299,2]
[420039731,1775629833603,-95678.30615259,0.00010299,2]
[420039732,1775629833615,-24379.03254341,0.00010299,2]
[420039733,1775629837908,-500.0,0.00010298,2]
[420039734,1775629837919,-500.0,0.00010298,2]
[420039735,1775629837929,-500.0,0.00010298,2]
[420039736,1775629837939,-500.0,0.00010298,2]
[420039737,1775629837949,-500.0,0.00010298,2]
[420039738,1775629837959,-500.0,0.00010298,2]
[420039739,1775629837970,-229.54858959,0.00010298,2]
[420039740,1775629837980,-500.0,0.00010298,2]
[420039741,1775629837990,-500.0,0.00010298,2]
[420039742,1775629837999,-457.77249302,0.00010298,2]
[420039743,1775629838009,-500.0,0.00010298,2]
[420039744,1775629838019,-500.0,0.00010298,2]
[420039745,1775629838030,-500.0,0.00010298,2]
[420039746,1775629838041,-500.0,0.00010298,2]
[420039747,1775629838051,-254.30107649,0.00010298,2]
[420039748,1775629838066,-245.69892351,0.00010298,2]
[420039749,1775629838076,-311.8929801,0.00010298,2]
[420039750,1775629838086,-500.0,0.00010298,2]
[420039751,1775629838097,-268.97086437,0.00010298,2]
[420039752,1775629838108,-648.0912402,0.00010298,2]
[420039753,1775629838119,-500.0,0.00010298,2]
[420039754,1775629838129,-500.0,0.00010298,2]
[420039755,1775629838139,-40.34608182,0.00010298,2]
[420039756,1775629838151,-459.65391818,0.00010298,2]
[420039757,1775629838160,-30.34608182,0.00010298,2]
[420039758,1775629838172,-469.65391818,0.00010298,2]
[420039759,1775629838181,-500.0,0.00010298,2]
[420039760,1775629838190,-500.0,0.00010298,2]
[420039761,1775629838199,-500.0,0.00010298,2]
[420039762,1775629838208,-500.0,0.00010298,2]
[420039763,1775629838218,-500.0,0.00010298,2]
[420039764,1775629838227,-500.0,0.00010298,2]
[420039765,1775629838237,-500.0,0.00010298,2]
[420039766,1775629838247,-500.0,0.00010298,2]
[420039767,1775629838257,-500.0,0.00010298,2]
[420039768,1775629838267,-500.0,0.00010298,2]
[420039769,1775629838276,-500.0,0.00010298,2]
[420039770,1775629838285,-500.0,0.00010298,2]
[420039771,1775629838295,-500.0,0.00010298,2]
[420039772,1775629838304,-500.0,0.00010298,2]
[420039773,1775629838314,-500.0,0.00010298,2]
[420039774,1775629838324,-500.0,0.00010298,2]
[420039775,1775629838334,-500.0,0.00010298,2]
[420039776,1775629838344,-500.0,0.00010298,2]
[420039777,1775629838354,-500.0,0.00010298,2]
[420039778,1775629838364,-500.0,0.00010298,2]
[420039779,1775629838375,-500.0,0.00010298,2]
[420039780,1775629838384,-500.0,0.00010298,2]
[420039781,1775629838394,-500.0,0.00010298,2]
[420039782,1775629838404,-500.0,0.00010298,2]
[420039784,1775629838416,-500.0,0.00010298,2]
[420039786,1775629838426,-500.0,0.00010298,2]
[420039788,1775629838437,-500.0,0.00010298,2]
[420039790,1775629838447,-500.0,0.00010298,2]
[420039792,1775629838457,-500.0,0.00010298,2]
[420039795,1775629838467,-500.0,0.00010298,2]
[420039797,1775629838477,-500.0,0.00010298,2]
[420039798,1775629838486,-8182.53322481,0.00010299,2]
[420039801,1775629838501,-5462.49794478,0.00010299,2]
[420039803,1775629838516,-840529.85800589,0.00010299,2]
[420039806,1775629838528,-250.0,0.000103,2]
[420039808,1775629838540,-2500.0,0.000103,2]
[420039810,1775629838551,-3177.6322,0.000103,2]
[420039812,1775629838562,-300.0,0.000103,2]
[420039813,1775629838572,-6775.4221,0.000103,2]
[420039814,1775629838582,-250.0,0.00010304,2]
[420039816,1775629838593,-150.0,0.00010307,2]
[420039817,1775629838603,-5000.0,0.00010307,2]
[420039819,1775629838613,-10426.0214,0.00010308,2]
[420039821,1775629838624,-166.1737474,0.00010308,2]
[420039824,1775629838636,-3404.31588382,0.00010308,2]
[420039827,1775629838647,-5000.0,0.00010326,2]
[420039830,1775629838656,-5000.0,0.00010326,2]
[420039831,1775629838665,-24049.36,0.00010356,2]
[420039833,1775629838675,-576.75688538,0.00010373,2]
[420039835,1775629838686,-170.15582469,0.00010373,2]
[420039837,1775629838696,-500.0,0.00010373,2]
[420039839,1775629838706,-500.0,0.00010373,2]
[420039842,1775629838715,-500.0,0.00010373,2]
[420039843,1775629838726,-164.45663059,0.00010373,2]
[420039845,1775629838738,-246.25716228,0.00010373,2]
[420039847,1775629838747,-500.0,0.00010373,2]
[420039849,1775629838757,-501.16240007,0.00010373,2]
[420039851,1775629838767,-500.0,0.00010373,2]
[420039853,1775629838777,-500.0,0.00010373,2]
[420039856,1775629838787,-500.0,0.00010373,2]
[420039858,1775629838797,-500.0,0.00010373,2]
[420039860,1775629838807,-500.22085293,0.00010373,2]
[420039861,1775629838818,-500.0,0.00010373,2]
[420039863,1775629838828,-281.88719221,0.00010373,2]
[420039866,1775629838839,-200.08326476,0.00010373,2]
[420039868,1775629838849,-169.66281329,0.00010373,2]
[420039870,1775629838859,-500.0,0.00010373,2]
[420039871,1775629838869,-500.0,0.00010373,2]
[420039873,1775629838879,-500.0,0.00010373,2]
[420039875,1775629838889,-500.0,0.00010373,2]
[420039878,1775629838899,-697.34512114,0.00010398,2]
[420039880,1775629838908,-479.62010106,0.00010399,2]
[420039882,1775629838919,-150.0,0.00010399,2]
[420039883,1775629839262,-500.0,0.00010399,2]
[420039884,1775629839277,-835.0,0.00010399,2]
[420039885,1775629839288,-150.99,0.000104,2]
[420039886,1775629839298,-5507.95,0.000104,2]
[420039887,1775629839308,-999.99,0.000104,2]
[420039888,1775629839318,-150.99,0.000104,2]
[420039889,1775629839328,-299.99,0.000104,2]
[420039890,1775629839337,-14114.9,0.000104,2]
[420039891,1775629839347,-5947.35,0.000104,2]
[420039892,1775629839357,-1191.35,0.000104,2]
[420039893,1775629839367,-4999.99,0.000104,2]
[420039894,1775629839376,-31649.35,0.000104,2]
[420039895,1775629839386,-1621.24,0.000104,2]
[420039896,1775629839396,-9999.99,0.000104,2]
[420039897,1775629839405,-9999.99,0.000104,2]
[420039898,1775629839414,-499.99,0.000104,2]
[420039899,1775629839423,-9999.99,0.000104,2]
[420039900,1775629839433,-1138.4,0.000104,2]
[420039901,1775629839443,-104733.16,0.000104,2]
[420039902,1775629839452,-9999.99,0.000104,2]
[420039903,1775629839462,-150.0,0.00010401,2]
[420039904,1775629839472,-150.0,0.00010401,2]
[420039905,1775629839482,-150.0,0.00010401,2]
[420039906,1775629839492,-219963.48,0.00010401,2]
[420039907,1775629839502,-1211.11,0.00010401,2]
[420039908,1775629839513,-7176.46,0.00010401,2]
[420039909,1775629839523,-727.93,0.00010401,2]
[420039910,1775629839533,-7611.53,0.00010401,2]
[420039911,1775629839542,-479.62010106,0.00010402,2]
[420039912,1775629839552,-479.62010106,0.00010402,2]
[420039913,1775629839564,-151.0,0.00010402,2]
[420039914,1775629839574,-151.0,0.00010402,2]
[420039915,1775629839583,-151.0,0.00010402,2]
[420039916,1775629839593,-151.0,0.00010402,2]
[420039917,1775629839603,-151.0,0.00010402,2]
[420039918,1775629839614,-151.0,0.00010402,2]
[420039919,1775629839624,-151.0,0.00010402,2]
[420039920,1775629839634,-151.0,0.00010402,2]
[420039921,1775629839644,-151.0,0.00010402,2]
[420039922,1775629839654,-151.0,0.00010402,2]
[420039923,1775629839664,-200.0,0.00010402,2]
[420039924,1775629839673,-151.0,0.00010402,2]
[420039925,1775629839683,-151.0,0.00010402,2]
[420039926,1775629839693,-151.0,0.00010402,2]
[420039927,1775629839704,-151.0,0.00010402,2]
[420039928,1775629839713,-151.0,0.00010402,2]
[420039929,1775629839722,-151.0,0.00010402,2]
[420039930,1775629839732,-151.0,0.00010402,2]
[420039931,1775629839743,-151.0,0.00010402,2]
[420039932,1775629839753,-151.0,0.00010402,2]
[420039933,1775629839762,-152.45672918,0.00010402,2]
[420039934,1775629839772,-151.0,0.00010402,2]
[420039935,1775629839782,-151.0,0.00010402,2]
[420039936,1775629839793,-1199.20597015,0.00010402,2]
[420039937,1775629839802,-151.0,0.00010402,2]
[420039938,1775629839812,-151.0,0.00010402,2]
[420039939,1775629839824,-151.0,0.00010402,2]
[420039940,1775629839834,-151.0,0.00010402,2]
[420039941,1775629839844,-151.0,0.00010402,2]
[420039942,1775629839855,-151.0,0.00010402,2]
[420039943,1775629839865,-151.0,0.00010402,2]
[420039944,1775629839875,-151.0,0.00010402,2]
[420039945,1775629839885,-151.0,0.00010402,2]
[420039946,1775629839896,-151.0,0.00010402,2]
[420039947,1775629839906,-151.0,0.00010402,2]
[420039948,1775629839916,-151.0,0.00010402,2]
[420039949,1775629839925,-151.0,0.00010402,2]
[420039950,1775629839935,-151.0,0.00010402,2]
[420039951,1775629839946,-152.55219078,0.00010402,2]
[420039952,1775629839956,-500.0,0.00010407,2]